bitfinex/quotes_BTCUSD_20240803
["timestamp","ask_amount","ask_price","bid_price","bid_amount"]
[1722645317933,0.15745924,61516.0,61515.0,0.001]
[1722645318508,0.27937824,61516.0,61515.0,0.001]
[1722645318802,0.58891724,61516.0,61515.0,0.001]
[1722645319005,0.71151724,61516.0,61515.0,0.001]
[1722645319209,0.5303958,61516.0,61515.0,0.001]
[1722645319409,0.5303958,61516.0,61514.0,0.001913]
[1722645319410,0.01,61515.0,61514.0,0.001913]
[1722645319614,0.16745924,61515.0,61514.0,0.001913]
[1722645319820,0.16745924,61515.0,61514.0,0.000913]
[1722645320243,0.28938024,61515.0,61514.0,0.000913]
[1722645320450,0.98782346,61515.0,61514.0,0.000913]
[1722645320650,1.55399207,61515.0,61514.0,0.000913]
[1722645320850,1.46603114,61515.0,61514.0,0.001913]
[1722645321257,1.6870983,61515.0,61514.0,0.001913]
[1722645321900,1.6870983,61515.0,61500.0,3.85099604]
[1722645321901,0.287249,61501.0,61500.0,3.82159218]
[1722645322107,0.287249,61501.0,61500.0,3.70514357]
[1722645322108,0.31275924,61501.0,61500.0,3.70514357]
[1722645322294,0.33575924,61501.0,61500.0,3.70514357]
[1722645322480,0.93810624,61501.0,61500.0,3.70514357]
[1722645322621,1.19200424,61501.0,61500.0,3.70514357]
[1722645323265,0.95510624,61501.0,61500.0,3.70514357]
[1722645323480,0.31975924,61501.0,61500.0,3.70514357]
[1722645323722,0.32975924,61501.0,61500.0,3.70514357]
[1722645323896,0.32075924,61501.0,61500.0,3.70514357]
[1722645324099,0.33175924,61501.0,61500.0,3.70514357]
[1722645324300,0.0947,61501.0,61500.0,3.71514357]
[1722645324504,0.029,61501.0,61500.0,3.71514357]
[1722645324939,0.029,61501.0,61500.0,3.97260281]
[1722645325093,0.011,61501.0,61500.0,3.97260281]
[1722645325292,0.022,61501.0,61500.0,4.03410281]
[1722645325517,0.011,61501.0,61500.0,4.03410281]
[1722645325669,0.00157439,61514.0,61500.0,4.03410281]
[1722645325670,0.00157439,61514.0,61513.0,0.01]
[1722645325886,0.08684399,61517.0,61516.0,0.01]
[1722645326690,0.08684399,61517.0,61513.0,0.01]
[1722645327103,0.08684399,61517.0,61515.0,0.01]
[1722645327344,0.08684399,61517.0,61516.0,0.01]
[1722645327544,0.08684399,61517.0,61502.0,0.1]
[1722645327545,0.08784399,61517.0,61506.0,0.01]
[1722645327879,0.0796,61513.0,61506.0,0.01]
[1722645328063,0.15745924,61512.0,61502.0,0.01]
[1722645328271,0.15745924,61512.0,61500.0,3.70514357]
[1722645328445,0.07875194,61508.0,61500.0,3.70514357]
[1722645328621,0.22405194,61501.0,61500.0,3.70514357]
[1722645328830,0.38151118,61501.0,61500.0,3.70514357]
[1722645329235,0.60346018,61501.0,61500.0,3.70514357]
[1722645329521,0.84893257,61501.0,61500.0,3.70514357]
[1722645329668,0.60346018,61501.0,61500.0,3.70514357]
[1722645329869,0.61546018,61501.0,61500.0,3.70514357]
[1722645330086,0.80493257,61501.0,61500.0,3.70514357]
[1722645330280,0.79135818,61501.0,61500.0,3.70514357]
[1722645330447,1.04525618,61501.0,61500.0,3.70514357]
[1722645330643,1.05725618,61501.0,61500.0,3.70514357]
[1722645330888,1.04625618,61501.0,61500.0,3.70514357]
[1722645331326,1.05725618,61501.0,61500.0,3.70514357]
[1722645331678,1.06894487,61501.0,61500.0,3.70514357]
[1722645331881,1.04864641,61501.0,61500.0,3.70514357]
[1722645332082,0.98019293,61501.0,61500.0,3.70514357]
[1722645332375,0.35954793,61501.0,61500.0,3.70514357]
[1722645332574,0.24454793,61501.0,61500.0,3.70514357]
[1722645332851,0.24354793,61501.0,61500.0,3.70514357]
[1722645333081,0.61999291,61501.0,61500.0,3.70514357]
[1722645333489,0.97433879,61501.0,61500.0,3.70514357]
[1722645333691,1.03433879,61501.0,61500.0,3.70514357]
[1722645333895,1.05633879,61501.0,61500.0,3.70514357]
[1722645334105,1.69534408,61501.0,61500.0,3.70514357]
[1722645334304,1.68534408,61501.0,61500.0,3.70514357]
[1722645334416,1.57143679,61501.0,61500.0,3.70514357]
[1722645335274,1.55943679,61501.0,61500.0,3.70514357]
[1722645335485,1.57941737,61501.0,61500.0,3.6751458]
[1722645336112,1.55441737,61501.0,61500.0,3.6751458]
[1722645336319,1.58241737,61501.0,61500.0,3.6751458]
[1722645336529,1.58274271,61501.0,61500.0,3.6751458]
[1722645336875,1.56874271,61501.0,61500.0,3.6852608]
[1722645337075,1.51898891,61501.0,61500.0,3.6852608]
[1722645337251,0.54805585,61501.0,61500.0,3.6852608]
[1722645337457,1.02119291,61501.0,61500.0,3.6852608]
[1722645337833,0.35114591,61501.0,61500.0,3.6852608]
[1722645338142,0.33945722,61501.0,61500.0,3.6852608]
[1722645338337,0.20770676,61501.0,61500.0,3.6852608]
[1722645338549,0.028,61501.0,61500.0,3.6952608]
[1722645338748,0.014,61501.0,61500.0,3.6952608]
[1722645338962,0.00983815,61503.0,61500.0,3.6852608]
[1722645339163,0.028,61501.0,61500.0,3.6852608]
[1722645339503,0.014,61501.0,61500.0,3.6852608]
[1722645339701,0.00157439,61505.0,61500.0,3.6852608]
[1722645339902,0.24389,61503.0,61500.0,3.6852608]
[1722645340064,0.15745924,61502.0,61500.0,3.6852608]
[1722645340261,0.17288745,61506.0,61501.0,0.01]
[1722645340262,0.006,61503.0,61501.0,0.01]
[1722645340482,0.004,61503.0,61502.0,0.01]
[1722645340689,0.004,61503.0,61501.0,0.01]
[1722645340888,0.004,61503.0,61502.0,0.01]
[1722645341086,0.004,61503.0,61501.0,0.01]
[1722645341531,0.00157439,61502.0,61501.0,0.01]
[1722645341735,0.15745924,61502.0,61500.0,3.6852608]
[1722645341936,0.27940824,61501.0,61500.0,3.6852608]
[1722645342090,0.59690824,61501.0,61500.0,3.6852608]
[1722645342305,0.98238938,61501.0,61500.0,3.6852608]
[1722645342512,1.01406279,61501.0,61500.0,3.6852608]
[1722645342746,1.26061032,61501.0,61500.0,3.6852608]
[1722645343113,1.28082683,61501.0,61500.0,3.6852608]
[1722645343324,1.26785467,61501.0,61500.0,3.6852608]
[1722645343526,1.26985467,61501.0,61500.0,3.6852608]
[1722645343728,1.27585467,61501.0,61500.0,3.6852608]
[1722645344137,1.03195667,61501.0,61500.0,3.6852608]
[1722645344346,1.11659011,61501.0,61500.0,3.6852608]
[1722645344732,1.10859011,61501.0,61500.0,3.6852608]
[1722645344925,0.47324311,61501.0,61500.0,3.6852608]
[1722645345128,0.23915043,61501.0,61500.0,3.6852608]
[1722645345337,0.07788439,61501.0,61500.0,3.6952608]
[1722645345548,0.07788439,61501.0,61500.0,3.6852608]
[1722645345748,0.23534363,61501.0,61500.0,3.6852608]
[1722645346169,0.26082445,61501.0,61500.0,3.6852608]
[1722645346399,0.58292014,61501.0,61500.0,3.6852608]
[1722645346592,0.94876714,61501.0,61500.0,3.6852608]
[1722645346888,0.58292014,61501.0,61500.0,3.6852608]
[1722645347062,0.49732445,61501.0,61500.0,3.6852608]
[1722645348734,0.26082445,61501.0,61500.0,3.6952608]
[1722645348945,0.10336521,61501.0,61500.0,3.6952608]
[1722645349119,0.08638416,61501.0,61500.0,3.6952608]
[1722645349539,0.09053342,61501.0,61500.0,3.6952608]
[1722645350307,0.09053342,61501.0,61500.0,3.7609608]
[1722645350506,0.014,61501.0,61500.0,3.7609608]
[1722645351601,0.006,61501.0,61500.0,3.7609608]
[1722645351797,0.014,61501.0,61500.0,3.7609608]
[1722645352172,0.008,61501.0,61500.0,3.7609608]
[1722645352377,0.00157439,61516.0,61513.0,0.01]
[1722645352519,0.24797388,61515.0,61513.0,0.01]
[1722645352714,0.31431783,61514.0,61506.0,0.01]
[1722645352980,0.31431783,61514.0,61510.0,0.01]
[1722645352981,0.07875194,61512.0,61510.0,0.01]
[1722645353186,0.07875194,61512.0,61500.0,3.6872608]
[1722645353187,0.2365,61514.0,61513.0,0.01]
[1722645353362,0.2365,61514.0,61500.0,3.6852608]
[1722645353363,0.07662435,61514.0,61510.0,0.01]
[1722645353641,0.0634,61517.0,61500.0,3.6852608]
[1722645353642,0.15537629,61513.0,61511.0,0.01]
[1722645353821,0.15537629,61513.0,61503.0,0.01]
[1722645353822,0.07662435,61512.0,61503.0,0.01]
[1722645354023,0.23565798,61511.0,61507.0,0.01]
[1722645354273,0.121943,61504.0,61501.0,0.01]
[1722645354388,0.2365,61501.0,61500.0,3.6852608]
[1722645354586,0.2365,61501.0,61500.0,3.6952608]
[1722645354587,0.31312435,61501.0,61500.0,3.6952608]
[1722645355151,0.31312435,61501.0,61500.0,3.6852608]
[1722645355453,0.47058359,61501.0,61500.0,3.6952608]
[1722645355658,0.47558359,61501.0,61500.0,3.6952608]
[1722645355798,0.08562435,61501.0,61500.0,3.6952608]
[1722645356203,0.004,61501.0,61500.0,3.6952608]
[1722645356493,0.009,61501.0,61500.0,3.6952608]
[1722645356671,0.005,61501.0,61500.0,3.6952608]
[1722645356829,0.005,61501.0,61500.0,3.7748608]
[1722645357209,0.01,61501.0,61500.0,3.7748608]
[1722645357614,0.005,61501.0,61500.0,3.7748608]
[1722645358635,0.006,61501.0,61500.0,3.6952608]
[1722645359066,0.001,61501.0,61500.0,3.6952608]
[1722645359288,0.07256886,61505.0,61500.0,3.6952608]
[1722645359529,0.001,61501.0,61500.0,3.6952608]
[1722645359765,0.07199447,61501.0,61500.0,3.6952608]
[1722645360049,0.07359808,61501.0,61500.0,3.6952608]
[1722645360284,0.06859808,61501.0,61500.0,3.6952608]
[1722645360500,0.00257439,61505.0,61504.0,0.01]
[1722645360711,0.001,61505.0,61504.0,0.01]
[1722645360928,0.07274999,61510.0,61504.0,0.01]
[1722645360929,0.00157439,61511.0,61510.0,0.01]
[1722645361147,0.18644998,61517.0,61514.0,0.01]
[1722645361148,0.04857417,61515.0,61514.0,0.01]
[1722645361420,0.12124998,61520.0,61504.0,0.0608]
[1722645361421,0.08369214,61516.0,61515.0,0.01]
[1722645361654,0.0652,61522.0,61521.0,0.01]
[1722645361655,0.0096794,61522.0,61521.0,0.01]
[1722645361859,0.55124999,61526.0,61525.0,0.01]
[1722645361860,0.4785,61526.0,61525.0,0.01]
[1722645362066,0.56943581,61526.0,61525.0,0.01]
[1722645362288,0.4785,61526.0,61525.0,0.01]
[1722645362511,0.49290269,61526.0,61525.0,0.01]
[1722645363548,0.55810269,61526.0,61523.0,0.01]
[1722645363761,0.24841527,61525.0,61519.0,0.01]
[1722645363981,0.15765194,61520.0,61511.0,0.01]
[1722645364257,0.38630735,61519.0,61511.0,0.01]
[1722645364455,0.38630735,61519.0,61517.0,0.01]
[1722645364456,0.09095603,61518.0,61517.0,0.01]
[1722645364661,0.09253042,61518.0,61517.0,0.01]
[1722645364858,0.09253042,61518.0,61511.0,0.01]
[1722645364859,0.25998966,61518.0,61511.0,0.01]
[1722645365108,0.04857417,61516.0,61512.0,0.01]
[1722645365301,0.08881286,61518.0,61500.0,3.6852608]
[1722645365302,0.09253042,61515.0,61514.0,0.01]
[1722645365542,0.00157439,61516.0,61515.0,0.01]
[1722645365739,0.00157439,61517.0,61516.0,0.01]
[1722645365966,0.00157439,61517.0,61512.0,0.0796]
[1722645365967,0.04857417,61525.0,61524.0,0.01]
[1722645366115,0.4785,61526.0,61525.0,0.01]
[1722645366573,0.57019871,61526.0,61525.0,0.01]
[1722645366777,0.4785,61526.0,61525.0,0.01]
[1722645367575,0.4865,61526.0,61525.0,0.01]
[1722645367788,0.4885,61526.0,61525.0,0.01]
[1722645368192,0.4895,61526.0,61525.0,0.01]
[1722645368397,0.4795,61526.0,61525.0,0.01]
[1722645368609,0.4825,61526.0,61525.0,0.01]
[1722645369066,0.5675029,61526.0,61525.0,0.01]
[1722645369300,0.5675029,61526.0,61523.0,0.01]
[1722645369301,0.56694963,61526.0,61523.0,0.01]
[1722645369515,0.22840291,61525.0,61524.0,0.01]
[1722645369931,0.08444963,61525.0,61524.0,0.01]
[1722645370150,0.4815,61526.0,61525.0,0.0896]
[1722645370151,0.003,61526.0,61525.0,0.0896]
[1722645370354,0.007,61526.0,61525.0,0.0896]
[1722645370563,0.00083,61527.0,61525.0,0.0896]
[1722645370564,0.00083,61527.0,61526.0,0.01]
[1722645370992,0.00083,61527.0,61526.0,0.17070958]
[1722645371198,0.00083,61527.0,61526.0,0.16745924]
[1722645371617,0.00083,61527.0,61526.0,0.01]
[1722645372212,0.00183,61527.0,61526.0,0.01]
[1722645372980,0.00183,61527.0,61526.0,0.0923]
[1722645373194,0.00183,61527.0,61526.0,0.47963724]
[1722645373394,0.00083,61527.0,61526.0,0.57963724]
[1722645373826,0.00183,61527.0,61526.0,0.57963724]
[1722645374025,0.00183,61527.0,61526.0,0.58163724]
[1722645374026,0.00283,61527.0,61526.0,0.58163724]
[1722645374583,0.00183,61527.0,61526.0,0.58163724]
[1722645374788,0.00183,61527.0,61526.0,0.57963724]
[1722645374997,0.00283,61527.0,61526.0,0.58263724]
[1722645375175,0.00183,61527.0,61526.0,0.59275224]
[1722645376116,0.00183,61527.0,61526.0,0.435293]
[1722645376314,0.00183,61527.0,61526.0,0.270493]
[1722645376760,0.00283,61527.0,61526.0,0.270493]
[1722645377099,0.00283,61527.0,61526.0,0.52795224]
[1722645377100,0.00183,61527.0,61526.0,0.52795224]
[1722645377233,0.00083,61527.0,61526.0,0.367493]
[1722645377434,0.00183,61527.0,61526.0,0.185193]
[1722645377616,0.00283,61527.0,61526.0,0.187193]
[1722645377818,0.00183,61527.0,61526.0,0.187193]
[1722645378475,0.00283,61527.0,61526.0,0.187193]
[1722645378680,0.00283,61527.0,61526.0,0.087193]
[1722645379041,0.00183,61527.0,61526.0,0.085193]
[1722645379251,0.00183,61527.0,61526.0,0.020115]
[1722645379658,0.00083,61527.0,61526.0,0.020115]
[1722645380002,0.00183,61527.0,61526.0,0.102415]
[1722645380359,0.00283,61527.0,61526.0,0.168015]
[1722645380563,0.00183,61527.0,61526.0,0.168015]
[1722645380762,0.00083,61527.0,61526.0,0.166015]
[1722645380891,0.00183,61527.0,61526.0,0.166015]
[1722645381297,0.00283,61527.0,61526.0,0.168015]
[1722645381517,0.00183,61527.0,61526.0,0.168015]
[1722645381819,0.00083,61527.0,61526.0,0.166015]
[1722645382020,0.00183,61527.0,61526.0,0.168015]
[1722645382428,0.00183,61527.0,61526.0,0.49027424]
[1722645382623,0.00183,61527.0,61526.0,0.59027424]
[1722645382802,0.00283,61527.0,61526.0,0.59027424]
[1722645383411,0.00083,61527.0,61526.0,0.58827424]
[1722645383631,0.00283,61527.0,61526.0,0.432815]
[1722645384111,0.00183,61527.0,61526.0,0.083715]
[1722645384279,0.00183,61527.0,61526.0,0.022115]
[1722645384502,0.00283,61527.0,61526.0,0.022115]
[1722645384679,0.00183,61527.0,61526.0,0.022115]
[1722645384958,0.01670078,61527.0,61526.0,0.022115]
[1722645385183,0.01570078,61527.0,61526.0,0.020115]
[1722645385385,0.00083,61527.0,61526.0,0.020115]
[1722645385580,0.01570078,61527.0,61526.0,0.020115]
[1722645385781,0.00183,61527.0,61526.0,0.022115]
[1722645385986,0.01670078,61527.0,61526.0,0.022115]
[1722645386767,0.01770078,61527.0,61526.0,0.022115]
[1722645386967,0.01670078,61527.0,61526.0,0.020115]
[1722645387333,0.01670078,61527.0,61526.0,0.012]
[1722645387460,0.01670078,61527.0,61526.0,0.01]
[1722645387993,0.00183,61527.0,61526.0,0.012]
[1722645388222,0.00183,61527.0,61526.0,0.01]
[1722645388223,0.00083,61527.0,61526.0,0.01]
[1722645388392,0.00083,61527.0,61526.0,0.012]
[1722645388393,0.00283,61527.0,61526.0,0.012]
[1722645389381,0.14624522,61527.0,61526.0,0.012]
[1722645389582,0.20984522,61527.0,61526.0,0.012]
[1722645389831,0.223716,61527.0,61526.0,0.012]
[1722645390033,0.223716,61527.0,61526.0,0.01]
[1722645390241,0.224716,61527.0,61526.0,0.012]
[1722645390391,0.223716,61527.0,61526.0,0.012]
[1722645390600,0.222716,61527.0,61526.0,0.01]
[1722645390901,0.224716,61527.0,61526.0,0.012]
[1722645391253,0.82491356,61527.0,61526.0,0.002]
[1722645391651,0.67925202,61527.0,61526.0,0.002]
[1722645391851,0.70148379,61527.0,61523.0,0.01]
[1722645392042,0.28257417,61527.0,61526.0,0.01]
[1722645392252,0.4220683,61527.0,61526.0,0.01]
[1722645392588,0.121905,61524.0,61521.0,0.01]
[1722645392946,0.121905,61524.0,61510.0,0.065095]
[1722645392947,0.07442886,61523.0,61519.0,0.01]
[1722645393070,0.05807314,61522.0,61519.0,0.01]
[1722645393278,0.01635572,61523.0,61519.0,0.01]
[1722645393279,0.05939906,61521.0,61519.0,0.01]
[1722645393516,0.05782467,61520.0,61519.0,0.01]
[1722645394133,0.072606,61520.0,61519.0,0.01]
[1722645394345,0.072606,61520.0,61492.0,0.123965]
[1722645394346,0.1401,61519.0,61510.0,0.067824]
[1722645394548,0.1401,61519.0,61499.0,0.0616]
[1722645394549,0.30323006,61518.0,61512.0,0.01]
[1722645394843,0.05782467,61517.0,61512.0,0.01]
[1722645394988,0.05782467,61517.0,61515.0,0.01]
[1722645394989,0.05939906,61516.0,61515.0,0.01]
[1722645395190,0.29755924,61519.0,61517.0,0.01]
[1722645395191,0.00157439,61518.0,61517.0,0.01]
[1722645395634,0.07271227,61518.0,61517.0,0.01]
[1722645396985,0.07571227,61518.0,61517.0,0.01]
[1722645397409,0.07271227,61518.0,61517.0,0.01]
[1722645397726,0.07371227,61518.0,61517.0,0.01]
[1722645399111,0.01735572,61518.0,61517.0,0.01]
[1722645399343,0.01735572,61518.0,61516.0,0.01]
[1722645399344,0.07527774,61518.0,61516.0,0.01]
[1722645399540,0.01635572,61518.0,61517.0,0.01]
[1722645399745,0.06986117,61518.0,61517.0,0.01]
[1722645399948,0.07186117,61518.0,61517.0,0.01]
[1722645400356,0.01835572,61518.0,61516.0,0.01]
[1722645400553,0.07005941,61518.0,61516.0,0.01]
[1722645400851,0.05370369,61517.0,61516.0,0.01]
[1722645401024,0.0683251,61517.0,61516.0,0.01]
[1722645401454,0.01462141,61517.0,61516.0,0.01]
[1722645401864,0.01462141,61517.0,61511.0,0.16485122]
[1722645401865,0.002,61518.0,61517.0,0.01]
[1722645402063,0.00954969,61525.0,61517.0,0.01]
[1722645402368,0.06303,61527.0,61526.0,0.01]
[1722645402522,0.12353737,61527.0,61526.0,0.01]
[1722645402724,0.17366042,61527.0,61526.0,0.01]
[1722645403141,0.13323661,61527.0,61526.0,0.01]
[1722645403526,0.13323661,61527.0,61520.0,0.01]
[1722645403527,0.36944779,61527.0,61520.0,0.01]
[1722645403916,0.2986,61521.0,61520.0,0.01]
[1722645404041,0.12270737,61521.0,61520.0,0.01]
[1722645405409,0.12770737,61521.0,61520.0,0.01]
[1722645405616,0.12270737,61521.0,61520.0,0.01]
[1722645406113,0.12428176,61521.0,61520.0,0.01]
[1722645406314,0.12270737,61521.0,61520.0,0.01]
[1722645406468,0.1732653,61521.0,61520.0,0.01]
[1722645406890,0.1712653,61521.0,61520.0,0.01]
[1722645407091,0.12270737,61521.0,61520.0,0.01]
[1722645407294,0.1782653,61521.0,61520.0,0.01]
[1722645407494,0.19339936,61521.0,61520.0,0.01]
[1722645408283,0.19039936,61521.0,61520.0,0.01]
[1722645408486,0.19139936,61521.0,61520.0,0.01]
[1722645408695,0.18439936,61521.0,61520.0,0.01]
[1722645408897,0.18839936,61521.0,61520.0,0.01]
[1722645409419,0.18258813,61521.0,61520.0,0.01]
[1722645409748,0.07990845,61521.0,61520.0,0.01]
[1722645409949,0.23430002,61521.0,61517.0,0.01]
[1722645410116,0.0779,61518.0,61517.0,0.01]
[1722645410316,0.23386596,61518.0,61517.0,0.01]
[1722645410518,0.23229157,61518.0,61516.0,0.01]
[1722645410742,0.0588501,61517.0,61516.0,0.01]
[1722645411301,0.07098416,61517.0,61516.0,0.01]
[1722645412126,0.07098416,61517.0,61516.0,0.012]
[1722645412296,0.07098416,61517.0,61516.0,0.01]
[1722645412839,0.14168679,61517.0,61516.0,0.01]
[1722645413285,0.06882725,61517.0,61516.0,0.01]
[1722645413640,0.14168066,61517.0,61516.0,0.01]
[1722645414237,0.14076132,61517.0,61516.0,0.01]
[1722645414484,0.14076132,61517.0,61516.0,0.012]
[1722645414657,0.06790791,61517.0,61516.0,0.01]
[1722645414955,0.16502377,61517.0,61516.0,0.01]
[1722645415367,0.304042,61516.0,61508.0,0.01]
[1722645415514,0.33352127,61510.0,61506.0,0.01]
[1722645415719,0.07283472,61507.0,61506.0,0.01]
[1722645415947,0.10275714,61507.0,61506.0,0.01]
[1722645416197,0.0663272,61507.0,61506.0,0.01]
[1722645416370,0.06790159,61507.0,61506.0,0.01]
[1722645416610,0.0663272,61507.0,61506.0,0.01]
[1722645416848,0.11645927,61507.0,61506.0,0.01]
[1722645417047,0.11645927,61507.0,61503.0,0.01]
[1722645417048,0.12194,61506.0,61503.0,0.01]
[1722645417261,0.12194,61506.0,61498.0,0.0139643]
[1722645417262,0.10431795,61505.0,61504.0,0.01]
[1722645417477,0.21204845,61505.0,61504.0,0.01]
[1722645417709,0.22417619,61505.0,61504.0,0.01]
[1722645417915,0.06790159,61505.0,61504.0,0.01]
[1722645419105,0.06790159,61505.0,61504.0,0.011]
[1722645419504,0.06790159,61505.0,61504.0,0.01]
[1722645419702,0.01370213,61505.0,61504.0,0.01]
[1722645419859,0.06368565,61505.0,61504.0,0.01]
[1722645420261,0.32076283,61505.0,61499.0,0.01]
[1722645420614,0.32076283,61505.0,61498.0,0.0139643]
[1722645420615,0.26828264,61505.0,61504.0,0.01]
[1722645420744,0.01212774,61505.0,61504.0,0.012]
[1722645420952,0.06397292,61505.0,61504.0,0.012]
[1722645421202,0.05184518,61505.0,61504.0,0.01]
[1722645422090,0.21030442,61505.0,61502.0,0.01]
[1722645422292,0.21030442,61505.0,61500.0,3.6751458]
[1722645422293,0.31032777,61505.0,61504.0,0.002]
[1722645422495,0.35207812,61505.0,61504.0,0.022119]
[1722645422667,0.30567475,61505.0,61504.0,0.022119]
[1722645422841,0.27169438,61505.0,61504.0,0.022119]
[1722645423053,0.06415286,61505.0,61504.0,0.022119]
[1722645423269,0.05220525,61505.0,61504.0,0.022119]
[1722645423479,0.05386554,61506.0,61505.0,0.01]
[1722645423646,0.05561005,61506.0,61505.0,0.01]
[1722645423852,0.05403566,61506.0,61505.0,0.01]
[1722645424657,0.05403566,61506.0,61505.0,0.011]
[1722645424859,0.00982026,61507.0,61506.0,0.01]
[1722645425103,0.10391935,61513.0,61512.0,0.01]
[1722645425278,0.05567088,61513.0,61512.0,0.01]
[1722645425491,0.06764758,61513.0,61512.0,0.01]
[1722645425657,0.06900012,61513.0,61512.0,0.01]
[1722645426325,0.0786496,61513.0,61512.0,0.01]
[1722645426500,0.13617282,61513.0,61511.0,0.01]
[1722645426698,0.13617282,61513.0,61504.0,0.010949]
[1722645426699,0.08074291,61513.0,61512.0,0.01]
[1722645426909,0.08708493,61513.0,61512.0,0.01]
[1722645427112,0.06843545,61513.0,61512.0,0.01]
[1722645427313,0.0119767,61513.0,61512.0,0.01]
[1722645427513,0.0139767,61513.0,61512.0,0.01]
[1722645427933,0.07381065,61513.0,61512.0,0.01]
[1722645428335,0.08081065,61513.0,61512.0,0.01]
[1722645428537,0.07381065,61513.0,61512.0,0.01]
[1722645429191,0.07155772,61513.0,61512.0,0.01]
[1722645429977,0.06998333,61513.0,61512.0,0.01]
[1722645430356,0.06998333,61513.0,61512.0,0.1482]
[1722645430556,0.0139767,61513.0,61512.0,0.1482]
[1722645430762,0.0139767,61513.0,61512.0,0.30565924]
[1722645430964,0.0139767,61513.0,61512.0,0.1482]
[1722645431165,0.0139767,61513.0,61512.0,0.01]
[1722645431166,0.05879018,61513.0,61512.0,0.01]
[1722645431569,0.1437633,61513.0,61512.0,0.01]
[1722645431767,0.11749525,61513.0,61512.0,0.01]
[1722645431977,0.06889606,61513.0,61512.0,0.01]
[1722645432703,0.01210588,61513.0,61512.0,0.01]
[1722645432921,0.06929877,61513.0,61512.0,0.01]
[1722645433492,0.01410588,61513.0,61512.0,0.30605924]
[1722645434105,0.01210588,61513.0,61512.0,0.0886]
[1722645434313,0.01210588,61513.0,61512.0,0.01]
[1722645434314,0.05454105,61513.0,61512.0,0.01]
[1722645434520,0.04862746,61515.0,61511.0,0.1]
[1722645434521,0.07294119,61516.0,61515.0,0.01]
[1722645434869,0.12689233,61516.0,61515.0,0.01]
[1722645435360,0.05392778,61516.0,61515.0,0.01]
[1722645435580,0.21268271,61516.0,61515.0,0.01]
[1722645435867,0.21268271,61516.0,61515.0,0.012]
[1722645435868,0.23706458,61516.0,61515.0,0.012]
[1722645436426,0.11313708,61516.0,61515.0,0.012]
[1722645436881,0.11471147,61516.0,61515.0,0.012]
[1722645437112,0.19579349,61516.0,61515.0,0.012]
[1722645437246,0.20481328,61516.0,61515.0,0.01]
[1722645437446,0.21849355,61516.0,61515.0,0.01]
[1722645437656,0.07374296,61516.0,61515.0,0.01]
[1722645437891,0.19445201,61516.0,61515.0,0.01]
[1722645438088,0.07774296,61516.0,61515.0,0.01]
[1722645438488,0.07274296,61516.0,61515.0,0.01]
[1722645438668,0.06874296,61516.0,61515.0,0.01]
[1722645438906,0.07574296,61516.0,61515.0,0.01]
[1722645439427,0.06874296,61516.0,61515.0,0.01]
[1722645439797,0.07263895,61516.0,61515.0,0.01]
[1722645440139,0.07237307,61516.0,61515.0,0.01]
[1722645440343,0.07637336,61516.0,61515.0,0.01]
[1722645440565,0.19808604,61516.0,61515.0,0.01]
[1722645441069,0.17375287,61516.0,61515.0,0.01]
[1722645441207,0.07637336,61516.0,61515.0,0.01]
[1722645441705,0.19811074,61516.0,61515.0,0.01]
[1722645441956,0.07637336,61516.0,61515.0,0.01]
[1722645442720,0.19810978,61516.0,61515.0,0.01]
[1722645442889,0.07637336,61516.0,61515.0,0.01]
[1722645443089,0.14884535,61516.0,61515.0,0.01]
[1722645443291,0.02710588,61516.0,61515.0,0.01]
[1722645443509,0.02711696,61516.0,61515.0,0.01]
[1722645443708,0.10921696,61516.0,61515.0,0.01]
[1722645444289,0.0615,61515.0,61510.0,0.01]
[1722645444516,0.24840485,61514.0,61510.0,0.01]
[1722645444737,0.24840485,61514.0,61513.0,0.01]
[1722645444738,0.43996456,61514.0,61513.0,0.01]
[1722645444911,0.05610778,61514.0,61513.0,0.01]
[1722645445316,0.05768217,61514.0,61513.0,0.01]
[1722645445958,0.01043046,61514.0,61513.0,0.01]
[1722645446157,0.01200485,61514.0,61513.0,0.01]
[1722645446487,0.01500485,61514.0,61513.0,0.01]
[1722645446921,0.01700485,61514.0,61513.0,0.01]
[1722645447448,0.06295875,61514.0,61513.0,0.01]
[1722645447913,0.05995875,61514.0,61513.0,0.01]
[1722645448127,0.05795875,61514.0,61513.0,0.01]
[1722645448332,0.06095875,61514.0,61513.0,0.01]
[1722645448759,0.06095875,61514.0,61504.0,0.00083]
[1722645448760,0.06095875,61514.0,61511.0,0.01]
[1722645448958,0.0459539,61513.0,61512.0,0.01]
[1722645449564,0.05638436,61513.0,61512.0,0.01]
[1722645449978,0.1386114,61513.0,61512.0,0.01]
[1722645450178,0.38246189,61513.0,61512.0,0.001]
[1722645450429,1.04929613,61513.0,61512.0,0.001]
[1722645450569,0.1892,61505.0,61504.0,0.00083]
[1722645450773,0.67888167,61505.0,61504.0,0.00083]
[1722645450980,1.16664567,61505.0,61504.0,0.00083]
[1722645451182,1.48331961,61505.0,61504.0,0.00083]
[1722645451548,0.753845,61501.0,61500.0,3.6751458]
[1722645451704,1.2366465,61501.0,61500.0,3.60799845]
[1722645451956,1.42857178,61501.0,61500.0,3.51728902]
[1722645452136,1.04909434,61501.0,61500.0,3.51728902]
[1722645452339,1.70809034,61501.0,61500.0,2.06865897]
[1722645452515,1.85109034,61501.0,61500.0,1.25665038]
[1722645452882,1.85109034,61501.0,61500.0,1.1859624]
[1722645453215,1.97091031,61501.0,61500.0,1.15297818]
[1722645453422,1.97091031,61501.0,61483.0,0.0118614]
[1722645453423,0.266082,61484.0,61483.0,0.0118614]
[1722645453648,0.266082,61484.0,61470.0,0.48261164]
[1722645453649,0.366007,61474.0,61470.0,0.47261164]
[1722645453804,0.75862014,61474.0,61470.0,0.47261164]